lending/lending_fUSD_20250706
["ID","MTS","AMOUNT","RATE_DAILY","PERIOD"]
[369981824,1751811032614,-964.4436053,0.00018878,2]
[369981825,1751811032624,-100000.0,0.000189,2]
[369981826,1751811032634,-6300.0,0.000189,6]
[369981827,1751811032644,-424.0,0.00018901,2]
[369981828,1751811032654,-150.0,0.00018903,2]
[369981829,1751811032664,-500.0,0.00018903,2]
[369981830,1751811032673,-622.53037381,0.00018903,2]
[369981831,1751811032683,-603.58493608,0.00018903,2]
[369981832,1751811032693,-469.41,0.00018904,2]
[369981833,1751811032702,-424.0,0.00018941,2]
[369981834,1751811032712,-2850.41077775,0.00018943,2]
[369981835,1751811032722,-151.0,0.00018946,2]
[369981836,1751811032732,-150.0,0.00018984,2]
[369981837,1751811032742,-19533.71546467,0.00019,14]
[369981838,1751811032751,-312.06180242,0.00019,2]
[369981839,1751811032761,-298.67,0.00019016,2]
[369981840,1751811032771,-265.0,0.00019019,2]
[369981841,1751811032780,-282.931,0.00019029,2]
[369981842,1751811032790,-1511.25069385,0.0001903,2]
[369981843,1751811032799,-300.0,0.00019037,2]
[369981844,1751811032809,-62843.36627488,0.00019037,2]
[369981845,1751811032821,-89833.69325204,0.00019037,2]
[369981846,1751811032832,-2986.53401036,0.00019045,2]
[369981847,1751811032841,-151.0,0.00019047,2]
[369981848,1751811032851,-9215.39734971,0.00019049,2]
[369981849,1751811032861,-6777.81730584,0.00019055,2]
[369981850,1751811032870,-836.76783547,0.00019061,2]
[369981851,1751811032879,-994.7468299,0.00019062,2]
[369981853,1751811032888,-190.0,0.0001907,2]
[369981854,1751811032898,-282.44676784,0.00019078,2]
[369981855,1751811032907,-156.22601604,0.00019078,2]
[369981857,1751811032917,-5000.0,0.00019078,2]
[369981858,1751811032926,-2850.41077775,0.0001908,2]
[369981859,1751811032937,-6777.81730584,0.00019085,2]
[369981860,1751811032946,-9747.39666844,0.00019089,2]
[369981861,1751811032959,-2937.29717064,0.00019089,2]
[369981906,1751811037782,-6206.42057011,0.00017761,2]
[369981907,1751811037793,-24.40236921,0.00017761,2]
[369981908,1751811037803,-54465.59763079,0.000179,2]
[369981909,1751811037832,-1240.07,0.000179,2]
[369981910,1751811037844,-542.75,0.000179,2]
[369981911,1751811037896,-92970.32117735,0.000179,2]
[369981912,1751811037907,-139992.36568784,0.00019089,2]
[369981913,1751811037916,-543.3024,0.00019099,2]
[369981914,1751811037926,-964.43,0.000191,2]
[369981915,1751811037936,-244.70165652,0.00019103,2]
[369981916,1751811037945,-2986.53401036,0.00019104,2]
[369981918,1751811037956,-7872.12809028,0.00019124,2]
[369981920,1751811037966,-1511.25069385,0.00019127,2]
[369981921,1751811037975,-7872.12809028,0.00019138,2]
[369981923,1751811037987,-151.0,0.00019148,2]
[369981924,1751811037998,-9215.39734971,0.00019149,2]
[369981925,1751811038007,-768.0,0.00019152,2]
[369981927,1751811038017,-1928.86,0.0001916,2]
[369981929,1751811038026,-196.23947154,0.00019168,2]
[369981930,1751811038036,-500.0,0.00019173,2]
[369981932,1751811038045,-500.0,0.00019173,2]
[369981934,1751811038054,-150.13295585,0.00019173,2]
[369981935,1751811038064,-334.4243746,0.00019173,2]
[369981937,1751811038073,-500.0,0.00019173,2]
[369981938,1751811038084,-500.0,0.00019173,2]
[369981940,1751811038094,-500.0,0.00019173,2]
[369981941,1751811038103,-300.87606112,0.00019173,2]
[369981942,1751811038112,-500.0,0.00019173,2]
[369981943,1751811038122,-500.0,0.00019173,2]
[369981945,1751811038132,-500.0,0.00019173,2]
[369981947,1751811038141,-237.31921706,0.00019173,2]
[369981949,1751811038150,-3450.0478267,0.00019173,2]
[369981951,1751811038159,-48123.15297922,0.00019173,2]
[369981981,1751811038441,152.38,0.00026153,120]
[369982115,1751811039756,-152.38,0.00017436,2]
[369982117,1751811039765,-179.75228803,0.00019173,2]
[369982119,1751811039776,-406.7114413,0.00019173,2]
[369982124,1751811039819,-10935.82799999,0.00019173,2]
[369982127,1751811039830,-3255.0,0.00019173,2]
[369982132,1751811039878,-1399.79399091,0.00019173,2]
[369982479,1751811043351,-769.1,0.00019173,2]
[369982481,1751811043362,-2728.9700214,0.00019173,2]
[369982493,1751811043467,-4552.98732636,0.00019173,2]
[369982496,1751811043489,-153.0,0.00019173,2]
[369982516,1751811043638,-54384.12099969,0.00019173,2]
[369982525,1751811043707,-2173.0,0.00019173,2]
[369982527,1751811043718,-7102.3044218,0.00019173,2]
[369982529,1751811043728,-8926.7183539,0.00019173,2]
[369982531,1751811043738,-1195.3275484,0.00019173,2]
[369982533,1751811043748,-160.0,0.00019176,2]
[369982535,1751811043758,-300.0,0.00019177,2]
[369982537,1751811043767,-300.0,0.00019177,2]
[369982539,1751811043777,-338.12241828,0.00019177,2]
[369982541,1751811043787,-666.0,0.00019177,2]
[369982543,1751811043796,-500.0,0.00019177,2]
[369982545,1751811043806,-168.51305251,0.00019177,2]
[369982547,1751811043816,-154.83866994,0.00019177,2]
[369982549,1751811043826,-500.0,0.00019177,2]
[369982551,1751811043835,-522.18702351,0.00019177,2]
[369982553,1751811043845,-170.787458,0.00019178,2]
[369982554,1751811043854,-163.072735,0.00019178,2]
[369982555,1751811043864,-160.728233,0.00019178,2]
[369982556,1751811043873,-408.95158963,0.00019178,2]
[369982557,1751811043933,-663.82520737,0.00019178,2]
[369982558,1751811043942,-587.22050727,0.00019178,2]
[369982559,1751811043952,-348.24097319,0.00019178,2]
[369982560,1751811043962,-460.0,0.00019178,2]
[369982561,1751811043971,-460.0,0.00019178,2]
[369982563,1751811043981,-460.0,0.00019178,2]
[369982565,1751811043990,-460.0,0.00019178,2]
[369982567,1751811043999,-460.0,0.00019178,2]
[369982569,1751811044009,-166.885609,0.00019178,2]
[369982571,1751811044018,-150.708979,0.00019178,2]
[369982573,1751811044027,-154.042435,0.00019178,2]
[369982575,1751811044036,-166.901295,0.00019178,2]
[369982577,1751811044046,-172.625829,0.00019178,2]
[369982579,1751811044055,-156.726379,0.00019178,2]
[369982581,1751811044065,-150.783859,0.00019178,2]
[369982583,1751811044075,-466.23484209,0.00019178,2]
[369982585,1751811044085,-460.0,0.00019178,2]
[369982587,1751811044096,-608.46375808,0.00019178,2]
[369982589,1751811044105,-460.0,0.00019178,2]
[369982591,1751811044117,-460.0,0.00019178,2]
[369982593,1751811044127,-460.0,0.00019178,2]
[369982595,1751811044136,-460.0,0.00019178,2]
[369982597,1751811044146,-460.0,0.00019178,2]
[369982599,1751811044155,-460.0,0.00019178,2]
[369982601,1751811044164,-460.0,0.00019178,2]
[369982603,1751811044173,-460.0,0.00019178,2]
[369982605,1751811044182,-460.0,0.00019178,2]
[369982606,1751811044191,-460.0,0.00019178,2]
[369982609,1751811044200,-460.0,0.00019178,2]
[369982610,1751811044209,-460.0,0.00019178,2]
[369982638,1751811044459,-460.0,0.00019178,2]
[369982640,1751811044470,-460.0,0.00019178,2]
[369982642,1751811044479,-460.0,0.00019178,2]
[369982644,1751811044489,-511.03336575,0.00019178,2]
[369982646,1751811044499,-460.0,0.00019178,2]
[369982649,1751811044509,-460.0,0.00019178,2]
[369982651,1751811044519,-460.0,0.00019178,2]
[369982653,1751811044529,-460.0,0.00019178,2]
[369982654,1751811044538,-460.0,0.00019178,2]
[369982656,1751811044548,-460.0,0.00019178,2]
[369982658,1751811044557,-460.0,0.00019178,2]
[369982660,1751811044567,-460.0,0.00019178,2]
[369982663,1751811044577,-460.0,0.00019178,2]
[369982664,1751811044593,-200.0,0.00019178,2]
[369982666,1751811044602,-1000.0,0.00019178,2]
[369982668,1751811044612,-150.0,0.00019178,2]
[369982670,1751811044622,-460.0,0.00019178,2]
[369982672,1751811044632,-460.0,0.00019178,2]
[369982674,1751811044641,-200.0,0.00019178,2]
[369982676,1751811044651,-460.0,0.00019178,2]
[369982678,1751811044660,-460.0,0.00019178,2]
[369982680,1751811044669,-460.0,0.00019178,2]
[369982682,1751811044678,-150.0,0.00019178,2]
[369982684,1751811044687,-460.0,0.00019178,2]
[369982686,1751811044697,-460.0,0.00019178,2]
[369982688,1751811044706,-490.0,0.00019178,2]
[369982690,1751811044716,-460.0,0.00019178,2]
[369982692,1751811044725,-460.0,0.00019178,2]
[369982694,1751811044735,-460.0,0.00019178,2]
[369982696,1751811044743,-460.0,0.00019178,2]
[369982698,1751811044753,-460.0,0.00019178,2]
[369982700,1751811044762,-460.0,0.00019178,2]
[369982702,1751811044771,-460.0,0.00019178,2]
[369982704,1751811044780,-460.0,0.00019178,2]
[369982706,1751811044789,-460.0,0.00019178,2]
[369982708,1751811044798,-460.0,0.00019178,2]
[369982710,1751811044807,-175.221097,0.00019178,2]
[369982712,1751811044816,-460.0,0.00019178,2]
[369982714,1751811044825,-181.652277,0.00019178,2]
[369982716,1751811044834,-460.0,0.00019178,2]
[369982718,1751811044845,-460.0,0.00019178,2]
[369982720,1751811044855,-560.48147025,0.00019178,2]
[369982722,1751811044864,-229.37466058,0.00019178,2]
[369982724,1751811044874,-520.0,0.00019178,2]
[369982726,1751811044883,-460.0,0.00019178,2]
[369982728,1751811044892,-460.0,0.00019178,2]
[369982730,1751811044902,-460.0,0.00019178,2]
[369982732,1751811044911,-151.0,0.00019178,2]
[369982734,1751811044920,-460.0,0.00019178,2]
[369982736,1751811044929,-151.0,0.00019178,2]
[369982738,1751811044939,-151.0,0.00019178,2]
[369982740,1751811044947,-151.0,0.00019178,2]
[369982742,1751811044957,-460.0,0.00019178,2]
[369982744,1751811044967,-460.0,0.00019178,2]
[369982746,1751811044977,-460.0,0.00019178,2]
[369982748,1751811044986,-520.0,0.00019178,2]
[369982750,1751811044995,-665.23,0.00019178,2]
[369982752,1751811045004,-460.0,0.00019178,2]
[369982754,1751811045014,-460.0,0.00019178,2]
[369982756,1751811045023,-460.0,0.00019178,2]
[369982758,1751811045032,-490.0,0.00019178,2]
[369982760,1751811045041,-460.0,0.00019178,2]
[369982762,1751811045051,-460.0,0.00019178,2]
[369982764,1751811045060,-460.0,0.00019178,2]
[369982766,1751811045069,-460.0,0.00019178,2]
[369982768,1751811045078,-460.0,0.00019178,2]
[369982770,1751811045090,-460.0,0.00019178,2]
[369982772,1751811045101,-460.0,0.00019178,2]
[369982774,1751811045111,-460.0,0.00019178,2]
[369982776,1751811045120,-460.0,0.00019178,2]
[369982778,1751811045130,-460.0,0.00019178,2]
[369982780,1751811045139,-437.21821498,0.00019178,2]
[369982782,1751811045148,-460.0,0.00019178,2]
[369982784,1751811045157,-460.0,0.00019178,2]
[369982786,1751811045167,-460.0,0.00019178,2]
[369982788,1751811045176,-460.0,0.00019178,2]
[369982790,1751811045185,-460.0,0.00019178,2]
[369982792,1751811045194,-190.78227501,0.00019178,2]
[369982794,1751811045203,-460.0,0.00019178,2]
[369982796,1751811045213,-460.0,0.00019178,2]
[369982798,1751811045222,-460.0,0.00019178,2]
[369982800,1751811045231,-460.0,0.00019178,2]
[369982802,1751811045240,-479.51,0.00019178,2]
[369982803,1751811045249,-490.0,0.00019178,2]
[369982806,1751811045259,-460.0,0.00019178,2]
[369982807,1751811045268,-460.0,0.00019178,2]
[369982810,1751811045278,-151.0,0.00019178,2]
[369982811,1751811045288,-151.0,0.00019178,2]
[369982814,1751811045297,-460.0,0.00019178,2]
[369982816,1751811045307,-460.0,0.00019178,2]
[369982818,1751811045317,-156.48750364,0.00019178,2]
[369982819,1751811045327,-567.34482128,0.00019178,2]
[369982822,1751811045340,-425.45452688,0.00019178,2]
[369982824,1751811045349,-466.96127889,0.00019178,2]
[369982825,1751811045358,-460.0,0.00019178,2]
[369982827,1751811045368,-460.0,0.00019178,2]
[369982829,1751811045378,-460.0,0.00019178,2]
[369982832,1751811045387,-460.0,0.00019178,2]
[369982834,1751811045396,-460.0,0.00019178,2]
[369982836,1751811045408,-460.0,0.00019178,2]
[369982838,1751811045418,-460.0,0.00019178,2]
[369982840,1751811045427,-460.0,0.00019178,2]
[369982842,1751811045437,-460.0,0.00019178,2]
[369982843,1751811045446,-460.0,0.00019178,2]
[369982845,1751811045456,-460.0,0.00019178,2]
[369982847,1751811045465,-460.0,0.00019178,2]
[369982849,1751811045475,-579.71076701,0.00019178,2]
[369982851,1751811045484,-460.0,0.00019178,2]
[369982853,1751811045493,-460.0,0.00019178,2]
[369982856,1751811045503,-598.25,0.00019178,2]
[369982858,1751811045513,-460.0,0.00019178,2]
[369982860,1751811045522,-493.8597541,0.00019178,2]
[369982862,1751811045531,-460.0,0.00019178,2]
[369982863,1751811045541,-460.0,0.00019178,2]
[369982865,1751811045550,-460.0,0.00019178,2]
[369982868,1751811045560,-460.0,0.00019178,2]
[369982869,1751811045570,-460.0,0.00019178,2]
[369982872,1751811045580,-460.0,0.00019178,2]
[369982873,1751811045594,-166.731889,0.00019178,2]
[369982875,1751811045603,-460.0,0.00019178,2]
[369982877,1751811045613,-460.0,0.00019178,2]
[369982880,1751811045623,-460.0,0.00019178,2]
[369982882,1751811045632,-460.0,0.00019178,2]
[369982883,1751811045641,-166.901296,0.00019178,2]
[369982886,1751811045651,-150.708979,0.00019178,2]
[369982888,1751811045662,-460.0,0.00019178,2]
[369982889,1751811045673,-460.0,0.00019178,2]
[369982891,1751811045683,-460.0,0.00019178,2]
[369982893,1751811045691,-537.81,0.00019178,2]
[369982895,1751811045701,-150.783858,0.00019178,2]
[369982898,1751811045711,-156.726379,0.00019178,2]
[369982899,1751811045720,-460.0,0.00019178,2]
[369982901,1751811045729,-460.0,0.00019178,2]
[369982903,1751811045739,-460.0,0.00019178,2]
[369982905,1751811045748,-460.0,0.00019178,2]
[369982907,1751811045758,-460.0,0.00019178,2]
[369982909,1751811045767,-460.0,0.00019178,2]
[369982911,1751811045776,-460.0,0.00019178,2]
[369982912,1751811045786,-388.39516917,0.00019178,2]
[369982914,1751811045795,-460.0,0.00019178,2]
[369982916,1751811045804,-460.0,0.00019178,2]
[369982918,1751811045814,-460.0,0.00019178,2]
[369982920,1751811045823,-460.0,0.00019178,2]
[369982922,1751811045832,-460.0,0.00019178,2]
[369982924,1751811045843,-528.70952625,0.00019178,2]
[369982926,1751811045852,-460.0,0.00019178,2]
[369982928,1751811045861,-460.0,0.00019178,2]
[369982930,1751811045870,-172.00790694,0.00019178,2]
[369982932,1751811045879,-460.0,0.00019178,2]
[369982934,1751811045889,-460.0,0.00019178,2]
[369982936,1751811045898,-460.0,0.00019178,2]
[369982938,1751811045907,-460.0,0.00019178,2]
[369982940,1751811045916,-460.0,0.00019178,2]
[369982942,1751811045925,-460.0,0.00019178,2]
[369982944,1751811045935,-589.38,0.00019178,2]
[369982946,1751811045944,-460.0,0.00019178,2]
[369982948,1751811045953,-460.0,0.00019178,2]
[369982950,1751811045962,-460.0,0.00019178,2]
[369982952,1751811045971,-460.0,0.00019178,2]
[369982954,1751811045980,-653.97,0.00019178,2]
[369982957,1751811045990,-460.0,0.00019178,2]
[369982959,1751811045999,-460.0,0.00019178,2]
[369982960,1751811046008,-460.0,0.00019178,2]
[369982963,1751811046017,-460.0,0.00019178,2]
[369982965,1751811046026,-460.0,0.00019178,2]
[369982967,1751811046035,-460.0,0.00019178,2]
[369982969,1751811046044,-460.0,0.00019178,2]
[369982971,1751811046053,-460.0,0.00019178,2]
[369982973,1751811046062,-460.0,0.00019178,2]
[369982975,1751811046071,-460.0,0.00019178,2]
[369982977,1751811046081,-460.0,0.00019178,2]
[369982978,1751811046091,-460.0,0.00019178,2]
[369982980,1751811046100,-500.0,0.00019178,2]
[369982982,1751811046110,-500.0,0.00019178,2]
[369982984,1751811046119,-500.0,0.00019178,2]
[369982987,1751811046128,-500.0,0.00019178,2]
[369982989,1751811046137,-460.0,0.00019178,2]
[369982991,1751811046146,-460.0,0.00019178,2]
[369982992,1751811046155,-460.0,0.00019178,2]
[369982994,1751811046164,-460.0,0.00019178,2]
[369982997,1751811046173,-460.0,0.00019178,2]
[369982999,1751811046182,-311.75588183,0.00019178,2]
[369983000,1751811046192,-605.32,0.00019178,2]
[369983002,1751811046201,-460.0,0.00019178,2]
[369983005,1751811046211,-460.0,0.00019178,2]
[369983007,1751811046221,-1173.27,0.00019178,2]
[369983009,1751811046230,-460.0,0.00019178,2]
[369983011,1751811046239,-460.0,0.00019178,2]
[369983013,1751811046248,-460.0,0.00019178,2]
[369983015,1751811046258,-460.0,0.00019178,2]
[369983017,1751811046267,-460.0,0.00019178,2]
[369983019,1751811046276,-722.56,0.00019178,2]
[369983021,1751811046285,-460.0,0.00019178,2]
[369983023,1751811046294,-154.06912418,0.00019178,2]
[369983025,1751811046303,-460.0,0.00019178,2]
[369983027,1751811046313,-460.0,0.00019178,2]
[369983029,1751811046322,-359.45421517,0.00019178,2]
[369983030,1751811046331,-460.0,0.00019178,2]
[369983033,1751811046344,-460.0,0.00019178,2]
[369983034,1751811046354,-460.0,0.00019178,2]
[369983036,1751811046363,-460.0,0.00019178,2]
[369983039,1751811046372,-460.0,0.00019178,2]
[369983040,1751811046382,-460.0,0.00019178,2]
[369983043,1751811046391,-460.0,0.00019178,2]
[369983044,1751811046401,-460.0,0.00019178,2]
[369983046,1751811046410,-460.0,0.00019178,2]
[369983048,1751811046420,-561.33,0.00019178,2]
[369983050,1751811046430,-460.0,0.00019178,2]
[369983053,1751811046439,-814.89,0.00019178,2]
[369983055,1751811046448,-342.91421027,0.00019178,2]
[369983057,1751811046457,-460.0,0.00019178,2]
[369983059,1751811046466,-460.0,0.00019178,2]
[369983060,1751811046475,-460.0,0.00019178,2]
[369983062,1751811046488,-460.0,0.00019178,2]
[369983065,1751811046499,-460.0,0.00019178,2]
[369983066,1751811046508,-460.0,0.00019178,2]
[369983069,1751811046518,-460.0,0.00019178,2]
[369983071,1751811046527,-460.0,0.00019178,2]
[369983072,1751811046536,-460.0,0.00019178,2]
[369983075,1751811046546,-561.14663345,0.00019178,2]
[369983076,1751811046556,-462.38866843,0.00019178,2]
[369983079,1751811046566,-460.0,0.00019178,2]
[369983081,1751811046576,-460.0,0.00019178,2]
[369983083,1751811046594,-460.0,0.00019178,2]
[369983085,1751811046604,-307.14263497,0.00019178,2]
[369983087,1751811046615,-460.0,0.00019178,2]
[369983089,1751811046626,-460.0,0.00019178,2]
[369983091,1751811046636,-846.14,0.00019178,2]
[369983093,1751811046645,-460.0,0.00019178,2]
[369983095,1751811046655,-460.0,0.00019178,2]
[369983097,1751811046665,-460.0,0.00019178,2]
[369983099,1751811046674,-488.89274564,0.00019178,2]
[369983101,1751811046683,-460.0,0.00019178,2]
[369983103,1751811046693,-460.0,0.00019178,2]
[369983105,1751811046702,-460.0,0.00019178,2]
[369983107,1751811046712,-460.0,0.00019178,2]
[369983109,1751811046721,-460.0,0.00019178,2]
[369983111,1751811046731,-460.0,0.00019178,2]
[369983112,1751811046741,-466.02970528,0.00019178,2]
[369983113,1751811046751,-460.0,0.00019178,2]
[369983114,1751811046760,-460.0,0.00019178,2]
[369983115,1751811046771,-460.0,0.00019178,2]
[369983116,1751811046781,-460.0,0.00019178,2]
[369983117,1751811046791,-460.0,0.00019178,2]
[369983118,1751811046800,-460.0,0.00019178,2]
[369983119,1751811046810,-714.87,0.00019178,2]
[369983120,1751811046820,-460.0,0.00019178,2]
[369983121,1751811046830,-460.0,0.00019178,2]
[369983122,1751811046840,-460.0,0.00019178,2]
[369983123,1751811046850,-794.52,0.00019178,2]
[369983124,1751811046859,-460.0,0.00019178,2]
[369983126,1751811046869,-743.89,0.00019178,2]
[369983128,1751811046878,-460.0,0.00019178,2]
[369983130,1751811046888,-460.0,0.00019178,2]
[369983132,1751811046898,-460.0,0.00019178,2]
[369983134,1751811046907,-617.55,0.00019178,2]
[369983136,1751811046917,-460.0,0.00019178,2]
[369983138,1751811046928,-460.0,0.00019178,2]
[369983140,1751811046940,-460.0,0.00019178,2]
[369983142,1751811046950,-460.0,0.00019178,2]
[369983144,1751811046960,-460.0,0.00019178,2]
[369983146,1751811046969,-460.0,0.00019178,2]
[369983149,1751811046981,-460.0,0.00019178,2]
[369983151,1751811046991,-460.0,0.00019178,2]
[369983153,1751811047000,-466.23,0.00019178,2]
[369983155,1751811047010,-460.0,0.00019178,2]
[369983157,1751811047021,-460.0,0.00019178,2]
[369983159,1751811047031,-460.0,0.00019178,2]
[369983161,1751811047041,-460.0,0.00019178,2]
[369983163,1751811047051,-460.0,0.00019178,2]
[369983165,1751811047060,-520.0,0.00019178,2]
[369983167,1751811047070,-460.0,0.00019178,2]
[369983169,1751811047080,-460.0,0.00019178,2]
[369983171,1751811047091,-460.0,0.00019178,2]
[369983173,1751811047100,-460.0,0.00019178,2]
[369983175,1751811047110,-460.0,0.00019178,2]
[369983177,1751811047119,-460.0,0.00019178,2]
[369983179,1751811047130,-460.0,0.00019178,2]
[369983181,1751811047140,-559.04,0.00019178,2]
[369983183,1751811047150,-460.0,0.00019178,2]
[369983185,1751811047159,-460.0,0.00019178,2]
[369983187,1751811047169,-460.0,0.00019178,2]
[369983189,1751811047178,-151.0,0.00019178,2]
[369983191,1751811047188,-460.0,0.00019178,2]
[369983193,1751811047198,-151.0,0.00019178,2]
[369983195,1751811047208,-340.65683499,0.00019178,2]
[369983197,1751811047217,-665.68,0.00019178,2]
[369983199,1751811047227,-460.0,0.00019178,2]
[369983201,1751811047236,-460.0,0.00019178,2]
[369983203,1751811047245,-460.0,0.00019178,2]
[369983205,1751811047255,-460.0,0.00019178,2]
[369983207,1751811047264,-681.87,0.00019178,2]
[369983209,1751811047273,-474.90830246,0.00019178,2]
[369983211,1751811047283,-460.0,0.00019178,2]
[369983213,1751811047292,-460.0,0.00019178,2]
[369983215,1751811047302,-460.0,0.00019178,2]
[369983217,1751811047311,-944.81,0.00019178,2]
[369983219,1751811047320,-460.0,0.00019178,2]
[369983221,1751811047330,-460.0,0.00019178,2]
[369983223,1751811047340,-598.95,0.00019178,2]
[369983225,1751811047349,-460.0,0.00019178,2]
[369983227,1751811047359,-1131.51,0.00019178,2]
[369983229,1751811047368,-460.0,0.00019178,2]
[369983231,1751811047378,-460.0,0.00019178,2]
[369983233,1751811047387,-460.0,0.00019178,2]
[369983235,1751811047396,-460.0,0.00019178,2]
[369983237,1751811047406,-460.0,0.00019178,2]
[369983239,1751811047415,-460.0,0.00019178,2]
[369983241,1751811047424,-460.0,0.00019178,2]
[369983243,1751811047434,-460.0,0.00019178,2]
[369983245,1751811047443,-460.0,0.00019178,2]
[369983247,1751811047453,-460.0,0.00019178,2]
[369983249,1751811047462,-460.0,0.00019178,2]
[369983251,1751811047471,-460.0,0.00019178,2]
[369983253,1751811047481,-386.01799424,0.00019178,2]
[369983255,1751811047490,-460.0,0.00019178,2]
[369983257,1751811047499,-460.0,0.00019178,2]
[369983259,1751811047509,-460.0,0.00019178,2]
[369983261,1751811047519,-492.19273521,0.00019178,2]
[369983263,1751811047528,-460.0,0.00019178,2]
[369983265,1751811047538,-460.0,0.00019178,2]
[369983267,1751811047547,-478.71,0.00019178,2]
[369983269,1751811047556,-460.0,0.00019178,2]
[369983271,1751811047565,-460.0,0.00019178,2]
[369983273,1751811047575,-474.79707142,0.00019178,2]
[369983275,1751811047586,-460.0,0.00019178,2]
[369983277,1751811047597,-460.0,0.00019178,2]
[369983279,1751811047606,-202.75694148,0.00019178,2]
[369983281,1751811047616,-460.0,0.00019178,2]
[369983283,1751811047625,-460.0,0.00019178,2]
[369983285,1751811047637,-460.0,0.00019178,2]
[369983287,1751811047646,-460.0,0.00019178,2]
[369983289,1751811047655,-586.43621826,0.00019178,2]
[369983291,1751811047666,-460.0,0.00019178,2]
[369983293,1751811047676,-549.04,0.00019178,2]
[369983295,1751811047685,-460.0,0.00019178,2]
[369983297,1751811047694,-460.0,0.00019178,2]
[369983299,1751811047704,-460.0,0.00019178,2]
[369983301,1751811047713,-460.0,0.00019178,2]
[369983303,1751811047722,-822.54,0.00019178,2]
[369983305,1751811047731,-881.45,0.00019178,2]
[369983307,1751811047740,-460.0,0.00019178,2]
[369983309,1751811047749,-460.0,0.00019178,2]
[369983311,1751811047758,-460.0,0.00019178,2]
[369983313,1751811047767,-703.96,0.00019178,2]
[369983314,1751811047776,-735.07,0.00019178,2]
[369983316,1751811047785,-460.0,0.00019178,2]
[369983318,1751811047795,-460.0,0.00019178,2]
[369983321,1751811047804,-827.14,0.00019178,2]
[369983323,1751811047813,-425.80794486,0.00019178,2]
[369983325,1751811047823,-460.0,0.00019178,2]
[369983326,1751811047832,-460.0,0.00019178,2]
[369983329,1751811047842,-490.0,0.00019178,2]
[369983330,1751811047852,-460.0,0.00019178,2]
[369983332,1751811047861,-460.0,0.00019178,2]
[369983334,1751811047871,-460.0,0.00019178,2]
[369983337,1751811047880,-460.0,0.00019178,2]
[369983339,1751811047890,-460.0,0.00019178,2]
[369983340,1751811047899,-520.0,0.00019178,2]
[369983342,1751811047908,-460.0,0.00019178,2]
[369983344,1751811047917,-499.16657122,0.00019178,2]
[369983346,1751811047927,-460.0,0.00019178,2]
[369983348,1751811047936,-460.0,0.00019178,2]
[369983350,1751811047945,-151.0,0.00019178,2]
[369983352,1751811047954,-521.71200135,0.00019178,2]
[369983354,1751811047963,-151.0,0.00019178,2]
[369983356,1751811047973,-151.0,0.00019178,2]
[369983358,1751811047982,-460.0,0.00019178,2]
[369983360,1751811047991,-519.27,0.00019178,2]
[369983362,1751811048000,-151.0,0.00019178,2]
[369983364,1751811048010,-151.527426,0.00019178,2]